fUST/lending_fUST_20240127
["ID","MTS","AMOUNT","RATE_DAILY","PERIOD"]
[312824693,1706302239423,-155.0,0.0003537,2]
[312824695,1706302239433,-335.79554506,0.00035377,2]
[312824697,1706302239443,-261.53420857,0.00035377,2]
[312824699,1706302239452,-2342.08485104,0.00035377,2]
[312824701,1706302239461,-450.22752616,0.00035398,2]
[312824703,1706302239470,-1000.0,0.00035429,10]
[312824705,1706302239479,-768.74799796,0.0003545,2]
[312824707,1706302239488,-613.2321383,0.0003545,2]
[312824709,1706302239498,-1000.0,0.00035472,10]
[312824711,1706302239507,-515.0799485,0.00035494,2]
[312824713,1706302239516,-500.0,0.00035616,2]
[312824715,1706302239525,-1827.263552,0.00035616,120]
[312824717,1706302239534,-176.03114948,0.00035747,2]
[312824719,1706302239543,-500.0,0.00035753,2]
[312824721,1706302239553,-500.0,0.0003589,2]
[312824724,1706302239562,-151.0,0.0003589,2]
[312824727,1706302239573,-151.0,0.00036,2]
[312824729,1706302239583,-160.747792,0.00036008,2]
[312824732,1706302239592,-500.0,0.00036027,2]
[312824735,1706302239601,-500.0,0.00036164,2]
[312824748,1706302239709,-462.80135791,0.00036301,2]
[312824750,1706302239718,-280.0,0.0003642,15]
[312824752,1706302239727,-585.10004292,0.00037299,15]
[312824754,1706302239736,-500.0,0.00037299,15]
[312824756,1706302239745,-202.7,0.00037299,15]
[312824758,1706302239754,-498.83167863,0.00037299,15]
[312824760,1706302239763,-446.26920227,0.00037299,15]
[312824762,1706302239775,-500.0,0.00037299,15]
[312824764,1706302239784,-500.0,0.00037299,15]
[312824766,1706302239793,-500.0,0.00037299,15]
[312824768,1706302239803,-500.0,0.00037299,15]
[312824770,1706302239811,-500.0,0.00037299,15]
[312824772,1706302239820,-500.0,0.00037299,15]
[312824774,1706302239829,-500.0,0.00037299,15]
[312824776,1706302239838,-500.0,0.00037299,15]
[312824778,1706302239847,-500.0,0.00037299,15]
[312824780,1706302239857,-500.0,0.00037299,15]
[312824782,1706302239866,-500.0,0.00037299,15]
[312824783,1706302239875,-500.0,0.00037299,15]
[312824785,1706302239884,-500.0,0.00037299,15]
[312824787,1706302239895,-500.0,0.00037299,15]
[312824789,1706302239904,-544.08866818,0.00037299,15]
[312824791,1706302239913,-500.0,0.00037299,15]
[312824793,1706302239922,-500.0,0.00037299,15]
[312824795,1706302239931,-500.0,0.00037299,15]
[312824797,1706302239940,-500.0,0.00037299,15]
[312824799,1706302239949,-536.98058537,0.00037299,15]
[312824801,1706302239958,-500.0,0.00037299,15]
[312824803,1706302239967,-500.0,0.00037299,15]
[312824805,1706302239976,-500.0,0.00037299,15]
[312824807,1706302239985,-500.0,0.00037299,15]
[312824809,1706302239994,-500.0,0.00037299,15]
[312824811,1706302240004,-500.0,0.00037299,15]
[312824813,1706302240013,-500.0,0.00037299,15]
[312824815,1706302240023,-500.0,0.00037299,15]
[312824817,1706302240032,-500.0,0.00037299,15]
[312824819,1706302240041,-500.0,0.00037299,15]
[312824821,1706302240051,-500.0,0.00037299,15]
[312824823,1706302240060,-500.0,0.00037299,15]
[312824825,1706302240069,-500.0,0.00037299,15]
[312824827,1706302240078,-500.0,0.00037299,15]
[312824829,1706302240087,-500.0,0.00037299,15]
[312824831,1706302240096,-500.0,0.00037299,15]
[312824833,1706302240106,-500.0,0.00037299,15]
[312824835,1706302240115,-500.0,0.00037299,15]
[312824837,1706302240124,-500.0,0.00037299,15]
[312824839,1706302240133,-500.0,0.00037299,15]
[312824841,1706302240142,-500.0,0.00037299,15]
[312824843,1706302240151,-500.0,0.00037299,15]
[312824845,1706302240160,-500.0,0.00037299,15]
[312824847,1706302240168,-500.0,0.00037299,15]
[312824849,1706302240177,-500.0,0.00037299,15]
[312824851,1706302240186,-500.0,0.00037299,15]
[312824853,1706302240195,-500.0,0.00037299,15]
[312824855,1706302240205,-593.83497528,0.00037299,15]
[312824857,1706302240214,-500.0,0.00037299,15]
[312824859,1706302240222,-500.0,0.00037299,15]
[312824861,1706302240231,-500.0,0.00037299,15]
[312824863,1706302240240,-500.0,0.00037299,15]
[312824865,1706302240249,-500.0,0.00037299,15]
[312824867,1706302240258,-500.0,0.00037299,15]
[312824869,1706302240267,-500.0,0.00037299,15]
[312824871,1706302240276,-500.0,0.00037299,15]
[312824873,1706302240285,-500.0,0.00037299,15]
[312824875,1706302240295,-500.0,0.00037299,15]
[312824877,1706302240304,-303.37339625,0.00037299,15]
[312824879,1706302240313,-500.0,0.00037299,15]
[312824881,1706302240322,-500.0,0.00037299,15]
[312824883,1706302240332,-500.0,0.00037299,15]
[312824885,1706302240341,-208.17,0.00037299,2]
[312824887,1706302240350,-208.17,0.00037299,2]
[312824889,1706302240359,-208.17,0.00037299,2]
[312824891,1706302240369,-208.17,0.00037299,2]
[312824893,1706302240378,-208.17,0.00037299,2]
[312824895,1706302240387,-208.17,0.00037299,2]
[312824897,1706302240396,-208.17,0.00037299,2]
[312824899,1706302240405,-208.17,0.00037299,2]
[312824901,1706302240414,-208.17,0.00037299,2]
[312824903,1706302240423,-208.22,0.00037299,2]
[312824905,1706302240432,-151.0,0.00037299,2]
[312824907,1706302240442,-10000.0,0.00037299,2]
[312824909,1706302240451,-10000.0,0.00037299,2]
[312824910,1706302240460,-10000.0,0.00037299,2]
[312824912,1706302240469,-6936.64276048,0.000373,2]
[312825161,1706302242887,-476.48639649,0.00028086,2]
[312825166,1706302242899,-3737.96498787,0.00028086,2]
[312825169,1706302242910,-4206.19499909,0.00028086,2]
[312825211,1706302243262,-11456.97302514,0.00028086,2]
[312825213,1706302243271,-522.41614365,0.00028086,2]
[312825215,1706302243280,-9851.88575822,0.000373,2]
[312825575,1706302246322,-156160.48239475,0.000373,2]
[312826043,1706302458818,154.87609912,0.000176,2]
[312826050,1706302468597,350.30128977,0.00021,2]
[312826062,1706302521717,300.0,0.00021,2]
[312826066,1706302539704,300.0,0.00021,2]
[312826067,1706302542176,620.47380229,0.00021,2]
[312826070,1706302553910,230.12226655,0.00021,2]
[312826071,1706302568817,155.03875969,0.00021,2]
[312826072,1706302588904,215.87698471,0.00021,2]
[312826073,1706302882627,237.6928593,0.00020059,2]
[312826074,1706302917842,538.13039431,0.00020383,2]
[312826075,1706303037132,166.666666,0.00021918,2]
[312826078,1706303090025,949.87454992,0.00021918,2]
[312826079,1706303118811,938.28404821,0.00021918,2]
[312826080,1706303134811,653.43044393,0.00021918,2]
[312826081,1706303179318,1827.38712364,0.00021918,2]
[312826082,1706303193323,1826.50328437,0.00021918,2]
[312826083,1706303288044,10930.611936,0.0002149,2]
[312826086,1706303425566,500.0,0.00029,30]
[312826131,1706303432281,-1933.85,0.00022441,3]
[312826133,1706303432291,-167.10938198,0.00022447,2]
[312826134,1706303432300,-155.03875969,0.00022448,2]
[312826136,1706303432309,-1243.18794346,0.00022448,2]
[312826137,1706303432318,-295.0754832,0.00022448,2]
[312826139,1706303432327,-155.03875969,0.00022449,2]
[312826141,1706303432336,-166.77726809,0.00022449,2]
[312826143,1706303432345,-617.10324162,0.00022449,2]
[312826146,1706303432355,-3747.87536289,0.00022449,2]
[312826148,1706303432363,-155.03875969,0.0002245,2]
[312826150,1706303432373,-1026.83362731,0.0002245,2]
[312826151,1706303432382,-36986.4770049,0.0002245,2]
[312826153,1706303432391,-18914.66367952,0.0002245,2]
[312826154,1706303432400,-302.12279675,0.00022451,2]
[312826155,1706303432409,-5863.66494587,0.00022451,2]
[312826156,1706303432417,-78185.9882464,0.00022451,2]
[312826180,1706303439185,-179.01727218,0.0002244,2]
[312826181,1706303439194,-1580.35552907,0.0002244,2]
[312826183,1706303439204,-555.7243333,0.0002244,2]
[312826185,1706303439214,-453.07430926,0.0002244,2]
[312826187,1706303439223,-595.45090393,0.0002244,2]
[312826189,1706303439232,-155.03875969,0.00022447,2]
[312826191,1706303439243,-1994.67280692,0.0002245,2]
[312826193,1706303439252,-3057.28827031,0.00022451,2]
[312826195,1706303439262,-522.41614365,0.00022452,2]
[312826196,1706303439271,-19877.61940859,0.00022452,2]
[312826198,1706303439281,-20884.97373293,0.00022452,2]
[312826200,1706303439290,-3487.69891167,0.00022453,2]
[312826202,1706303439299,-7965.10067001,0.00022453,2]
[312826204,1706303439309,-155.03875969,0.0002265,2]
[312826206,1706303439318,-166.666666,0.00022773,2]
[312826208,1706303439327,-1416.35950919,0.00023,2]
[312826210,1706303439336,-166.666666,0.00023627,2]
[312826212,1706303439345,-163.537017,0.00023679,2]
[312826214,1706303439355,-166.666666,0.00024482,2]
[312826217,1706303439364,-200.0,0.00024725,7]
[312826218,1706303439373,-764.62995522,0.00025,2]
[312826220,1706303439383,-200.0,0.00025479,2]
[312826222,1706303439392,-280.0,0.00027197,15]
[312826224,1706303439401,-155.0,0.00027397,2]
[312826227,1706303439410,-391.0,0.00029917,15]
[312826229,1706303439419,-1611.54,0.0002999,3]
[312826231,1706303439429,-175.31396286,0.00029992,2]
[312826233,1706303439438,-155.03875969,0.00029993,2]
[312826235,1706303439447,-155.03875969,0.0003,2]
[312826237,1706303439456,-2373.20128333,0.0003,2]
[312826239,1706303439465,-195.54104758,0.0003,2]
[312826240,1706303439474,-154.90705577,0.0003,2]
[312826242,1706303439483,-99025.57500068,0.0003,4]
[312826245,1706303439500,-261.2804971,0.00022439,2]
[312826247,1706303439509,-238.72024689,0.0003,4]
[312826250,1706303439521,-19165.59923154,0.0003,4]
[312826309,1706303442269,-261.0420914,0.00022439,2]
[312826310,1706303442279,-265.62893256,0.00022439,2]
[312826311,1706303442289,-742.34321696,0.0003,4]
[312826312,1706303442324,-2449.67535945,0.0003,4]
[312826315,1706303443407,-8390.77758853,0.0003,4]
[312826316,1706303443420,-4602.36759626,0.0003,4]
[312826317,1706303443433,-4689.45800716,0.0003,4]
[312826318,1706303443442,-162.36953,0.00030137,2]
[312826319,1706303443452,-158.280104,0.00030137,2]
[312826320,1706303443461,-162.36953,0.00031659,2]
[312826321,1706303443472,-3624.17530018,0.00032,10]
[312826344,1706303446454,-155.03875969,0.00029999,2]
[312826346,1706303446463,-405.92314342,0.00031999,4]
[312826347,1706303446473,-367.93603293,0.00031999,4]
[312826349,1706303446483,-6578.6742227,0.00032,10]
[312826351,1706303446492,-7890.91617326,0.00032,15]
[312826379,1706303481569,500.0,0.0003,120]
[312826380,1706303527857,449.4,0.0003,120]
[312826386,1706304067913,6045.04,0.00022,2]
[312826388,1706304291584,1927.735033,0.00021476,2]
[312826435,1706304633980,-6692.07,0.00022323,2]
[312826531,1706304647186,200.0,0.00021476,2]
[312826532,1706304677523,1827.38712364,0.00021476,2]
[312826533,1706304701542,626.64799931,0.00021476,2]
[312826534,1706304752435,151.02567436,0.0002981,120]
[312826535,1706304878372,166.666666,0.00021918,2]
[312826539,1706305020109,629.53268824,0.00021999,2]
[312826540,1706305021969,155.02635448,0.00021999,2]
[312826541,1706305030765,522.41614365,0.00021999,2]
[312826542,1706305035080,555.7243333,0.00021999,2]
[312826543,1706305041247,2769.41,0.00021991,3]
[312826544,1706305043610,155.02635448,0.00021999,2]
[312826545,1706305046774,522.41614365,0.00021999,2]
[312826546,1706305047037,471.5861861,0.00021999,2]
[312826547,1706305047104,285.03252663,0.00021903,2]
[312826548,1706305053385,2307.84,0.00021991,3]
[312826549,1706305055326,3257.5916366,0.00021999,2]
[312826551,1706305056212,617.10324162,0.00021999,2]
[312826552,1706305056685,18914.66367952,0.00021999,2]
[312826553,1706305060533,1994.67280692,0.00021999,2]
[312826554,1706305061605,297.61491083,0.00021999,2]
[312826555,1706305062449,265.62893256,0.00021999,2]
[312826556,1706305064448,1243.18794346,0.00021999,2]
[312826557,1706305064771,505.28407444,0.00021999,2]
[312826558,1706305065398,1923.2,0.00021991,3]
[312826559,1706305069495,19877.61940859,0.00021999,2]
[312826560,1706305070361,617.10324162,0.00021999,2]
[312826561,1706305070389,161.1289327,0.00021999,2]
[312826562,1706305076659,18914.66367952,0.00021999,2]
[312826563,1706305079331,3257.5916366,0.00021999,2]
[312826564,1706305080460,1243.18794346,0.00021999,2]
[312826565,1706305080559,1989.9607586,0.00021999,2]
[312826566,1706305082427,314.90990727,0.00021999,2]
[312826567,1706305083510,19877.61940859,0.00021999,2]
[312826568,1706305086399,160.34949863,0.00021999,2]
[312826569,1706305090395,617.10324162,0.00021999,2]
[312826570,1706305092667,11167.17705929,0.00021999,2]
[312826571,1706305093768,6315.30419501,0.00021999,2]
[312826573,1706305237669,-828.0,0.00020989,2]
[312826574,1706305432673,-171.257432,0.00020864,2]
[312826575,1706305432693,-243.28513868,0.00020965,2]
[312826576,1706305432714,-1697.20524267,0.00020965,2]
[312826577,1706305432821,-588.69915361,0.00020965,2]
[312826578,1706305432845,-155.01395126,0.00020966,2]
[312826579,1706305432867,-615.53908178,0.00020966,2]
[312826580,1706305503316,-295.0754832,0.00020962,2]
[312826581,1706305503338,-629.53268824,0.00020963,2]
[312826582,1706305503359,-156.39182856,0.00020967,2]
[312826583,1706305570913,-1697.20524267,0.00020958,2]
[312826584,1706305570933,-1060.68600045,0.00020959,2]
[312826585,1706305570954,-76.10875688,0.0002096,2]
[312826586,1706305639218,-595.45090393,0.00020954,2]
[312826587,1706305639239,-155.01395126,0.00020954,2]
[312826588,1706305639259,-329.74860932,0.00020955,2]
[312826589,1706305639280,-550.78653549,0.00020956,2]
[312826590,1706305708242,-213.55190572,0.00020683,2]
[312826591,1706305708267,-175.31396286,0.00020684,2]
[312826592,1706305708292,-244.15508901,0.00020684,2]
[312826593,1706305708318,-155.01395126,0.00020684,2]
[312826594,1706305708344,-1697.20524267,0.00020684,2]
[312826595,1706305708365,-302.12279675,0.00020684,2]
[312826596,1706305708507,-629.53268824,0.00020685,2]
[312826597,1706305708531,-295.0754832,0.00020685,2]
[312826598,1706305708551,-436.17321,0.00020686,2]
[312826599,1706305708571,-17.64029744,0.00020967,2]
[312826600,1706305708593,-24900.0,0.0002098,2]
[312826601,1706305708616,-155.01395126,0.00020986,2]
[312826602,1706305708636,-7543.40203579,0.00020986,2]
[312826603,1706305708656,-181.08904402,0.00020987,2]
[312826604,1706305708679,-1294.44989575,0.00020987,2]
[312826605,1706305708702,-537.26044603,0.00020988,2]
[312826660,1706305831995,-1026.83362731,0.00020662,2]
[312826661,1706305832005,-155.01860223,0.00020663,2]
[312826662,1706305832015,-19877.61940859,0.00020663,2]
[312826663,1706305832024,-453.07430926,0.00020663,2]
[312826664,1706305832033,-1580.35552907,0.00020664,2]
[312826665,1706305832043,-3747.87536289,0.00020664,2]
[312826666,1706305832052,-3818.38,0.00020665,3]
[312826667,1706305832063,-527.01508147,0.00020671,2]
[312826668,1706305832072,-644.80103285,0.00020672,2]
[312826669,1706305832081,-561.94551525,0.00020672,2]
[312826670,1706305832090,-181.08904402,0.00020673,2]
[312826671,1706305832099,-588.69915361,0.00020673,2]
[312826672,1706305832109,-1294.44989575,0.00020673,2]
[312826673,1706305832118,-302.12279675,0.00020673,2]
[312826674,1706305832127,-1697.20524267,0.00020673,2]
[312826675,1706305832136,-156.12493108,0.00020674,2]
[312826676,1706305832147,-213.55190572,0.00020674,2]
[312826677,1706305832156,-179.01727218,0.00020675,2]
[312826678,1706305832166,-595.45090393,0.00020675,2]
[312826679,1706305832176,-155.01860223,0.00020675,2]
[312826680,1706305832185,-20535.28037586,0.00020675,2]
[312826681,1706305832198,-462.228,0.00020675,2]
[312826696,1706305837679,-175.31396286,0.00020662,2]
[312826698,1706305837688,-155.01860223,0.00020662,2]
[312826700,1706305837697,-11375.9486471,0.00020662,2]
[312826706,1706305837791,-9509.02508583,0.00020662,2]
[312826707,1706305837800,-3181.98,0.00020666,3]
[312826708,1706305837812,-23797.98174744,0.00020675,2]
[312826709,1706305837827,-36447.78639341,0.00020675,2]
[312826710,1706305837839,-19712.13660076,0.00020676,2]
[312826711,1706305837848,-20911.81082028,0.00020676,2]
[312826712,1706305837858,-151.7319832,0.00020946,2]
[312826713,1706305837868,-4489.58193046,0.00020976,2]
[312826714,1706305837878,-2104.85059581,0.00020978,2]
[312826715,1706305837888,-2075.34158496,0.00020978,2]
[312826716,1706305837898,-470.95501386,0.00020978,2]
[312826717,1706305837908,-386.99972598,0.00020978,2]
[312826718,1706305837918,-321.02752099,0.00021905,2]
[312826719,1706305837927,-294.52846111,0.00021905,2]
[312826720,1706305837937,-262.4952811,0.00021916,2]
[312826721,1706305837947,-1590.36182158,0.00021916,2]
[312826722,1706305837957,-540.62353099,0.00021916,2]
[312826723,1706305837967,-288.43987116,0.00021917,2]
[312826724,1706305837976,-170.98714659,0.00021917,2]
[312826725,1706305837986,-10202.84952288,0.00021917,2]
[312826726,1706305837996,-166.666666,0.00021918,2]
[312826727,1706305838006,-2130.40626994,0.00021927,2]
[312826728,1706305838016,-265.62893256,0.00021927,2]
[312826729,1706305838027,-200.0,0.00021927,2]
[312826730,1706305838036,-208.00964983,0.00021928,2]
[312826731,1706305838047,-155.10768829,0.00021928,2]
[312826732,1706305838058,-309.9690031,0.00021928,2]
[312826733,1706305838068,-157.1119955,0.00021928,2]
[312826734,1706305838078,-329.12645914,0.00021929,2]
[312826735,1706305838087,-309.88083369,0.00021929,2]
[312826736,1706305838097,-166.73340823,0.00021929,2]
[312826737,1706305838106,-1742.02717057,0.00021931,2]
[312826738,1706305838118,-199.24913429,0.00021957,2]
[312826739,1706305838128,-160.33511763,0.00021997,2]
[312826740,1706305838137,-1239.56273779,0.00021999,2]
[312826741,1706305838146,-155.02325349,0.00022,2]
[312826742,1706305838156,-426.28921801,0.00022,2]
[312826743,1706305838166,-155.0,0.00022113,2]
[312826744,1706305838175,-166.666666,0.00022431,2]
[312826745,1706305838184,-166.666666,0.00022944,2]
[312826746,1706305838193,-1416.35950919,0.00023,2]
[312826747,1706305838202,-166.666666,0.00023456,2]
[312826748,1706305838212,-166.666666,0.00023969,2]
[312826749,1706305838221,-200.0,0.00024098,7]
[312826750,1706305838230,-159.91483238,0.000243,2]
[312826751,1706305838239,-166.666666,0.00024482,2]
[312826752,1706305838248,-295.29373989,0.00025,2]
[312826753,1706305838258,-210.02000714,0.00025,2]
[312826754,1706305838267,-155.08779782,0.00025,2]
[312826755,1706305838276,-155.14723407,0.00025,2]
[312826756,1706305838285,-7384.14849766,0.00025,2]
[312826757,1706305838295,-155.61962253,0.00025,2]
[312826758,1706305838306,-683.59100991,0.00025,2]
[312826759,1706305838315,-4726.99215817,0.00025,2]
[312826760,1706305838325,-4149.46727141,0.00026,2]
[312826761,1706305838334,-621.60312723,0.000264,2]
[312826762,1706305838344,-280.0,0.00026507,15]
[312826763,1706305838353,-290.6211574,0.00027,2]
[312826764,1706305838363,-620.08015636,0.0002772,2]
[312826765,1706305838372,-200.88680763,0.000279,2]
[312826766,1706305838381,-200.88680762,0.000279,2]
[312826767,1706305838390,-978.2579722,0.00028798,2]
[312826768,1706305838400,-1932.98612217,0.00029,2]
[312826769,1706305838410,-155.04496304,0.00029,2]
[312826770,1706305838419,-620.00400782,0.00029106,2]
[312826771,1706305838428,-391.0,0.00029158,15]
[312826772,1706305838438,-210.96440547,0.00029382,3]
[312826773,1706305838447,-276000.0,0.00029382,2]
[312826774,1706305838456,-50000.0,0.00029482,5]
[312826775,1706305838466,-2844.20023866,0.000295,30]
[312826776,1706305838475,-313.6891721,0.00029553,3]
[312826777,1706305838484,-50000.0,0.00029554,5]
[312826778,1706305838494,-151.0,0.00029554,2]
[312826779,1706305838503,-10000.0,0.00029554,2]
[312826780,1706305838512,-10000.0,0.00029554,2]
[312826781,1706305838521,-10000.0,0.00029554,2]
[312826782,1706305838530,-3194.47420237,0.0002981,2]
[312826783,1706305838540,-764.62995522,0.0002981,2]
[312826784,1706305838549,-155.02635448,0.0002981,2]
[312826785,1706305838558,-500.0,0.00029999,2]
[312826786,1706305838567,-616.00985202,0.00029999,2]
[312826787,1706305838576,-500.0,0.00029999,2]
[312826788,1706305838585,-500.0,0.00029999,2]
[312826789,1706305838595,-565.98166392,0.00029999,2]
[312826790,1706305838603,-200.37482181,0.00029999,2]
[312826791,1706305838612,-504.10895393,0.00029999,2]
[312826792,1706305838621,-236.52378376,0.0003,7]
[312826793,1706305838630,-195.54104758,0.0003,2]
[312826794,1706305838639,-68253.82904097,0.0003,4]
[312826795,1706305838649,-155.02635448,0.0003,4]
[312826796,1706305838659,-155.02635448,0.0003,2]
[312826797,1706305838668,-151.0,0.0003,2]
[312826798,1706305838677,-10000.0,0.0003,2]
[312826799,1706305838687,-10000.0,0.0003,2]
[312826800,1706305838696,-10000.0,0.0003,2]
[312826801,1706305838705,-158.280104,0.00030137,2]
[312826802,1706305838714,-163.824937,0.00030137,2]
[312826803,1706305838723,-151.01208097,0.00030189,30]
[312826804,1706305838732,-620.00020039,0.00030561,2]
[312826805,1706305838741,-151.01208097,0.00030805,7]
[312826806,1706305838750,-436.17321,0.0003103,2]
[312826807,1706305838760,-163.824937,0.00031279,2]
[312826808,1706305838769,-151.01208097,0.00031434,4]
[312826809,1706305838778,-1468.74719823,0.00031989,4]
[312826810,1706305838789,-291.23503982,0.00031995,2]
[312826811,1706305838798,-329.57540688,0.00031998,4]
[312826812,1706305838807,-261.28224959,0.00031998,4]
[312826813,1706305838816,-260.97193245,0.00031998,4]
[312826814,1706305838825,-157.04125364,0.00031998,4]
[312826815,1706305838836,-230.10005366,0.00031999,4]
[312826816,1706305838846,-24867.3262355,0.00031999,4]
[312826817,1706305838855,-151.0,0.00031999,2]
[312826818,1706305838865,-151.0,0.00031999,2]
[312826819,1706305838874,-151.0,0.00031999,2]
[312826820,1706305838883,-352.7255,0.00031999,2]
[312826821,1706305838892,-352.7255,0.00031999,2]
[312826822,1706305838901,-151.0,0.00031999,2]
[312826823,1706305838910,-10000.0,0.00031999,2]
[312826824,1706305838919,-10000.0,0.00031999,2]
[312826825,1706305838928,-10000.0,0.00031999,2]
[312826826,1706305838938,-124767.77016598,0.00032,15]
[312826827,1706305839016,-155.02635448,0.00032,4]
[312826828,1706305839025,-151.0,0.00032,2]
[312826829,1706305839035,-292.913258,0.00032,2]
[312826830,1706305839044,-151.0,0.00032,2]
[312826831,1706305839054,-352.7255,0.00032,2]
[312826832,1706305839063,-352.7255,0.00032,2]
[312826833,1706305839073,-151.0,0.00032,2]
[312826834,1706305839082,-151.0,0.00032,2]
[312826835,1706305839092,-151.0,0.00032,2]
[312826836,1706305839102,-303.11412,0.00032,2]
[312826837,1706305839111,-303.11412,0.00032,2]
[312826838,1706305839121,-1062.282448,0.00032,2]
[312826839,1706305839131,-1062.282448,0.00032,2]
[312826840,1706305839141,-699.111146,0.00032,2]
[312826841,1706305839151,-699.111146,0.00032,2]
[312826842,1706305839160,-151.0,0.00032,2]
[312826843,1706305839170,-10000.0,0.00032,2]
[312826844,1706305839180,-10000.0,0.00032,2]
[312826845,1706305839189,-336.869435,0.00032,2]
[312826846,1706305839198,-620.00001002,0.0003201,2]
[312826847,1706305839207,-200.0,0.00032074,15]
[312826848,1706305839216,-348.0,0.00032074,15]
[312826849,1706305839225,-151.01208097,0.00032076,2]
[312826850,1706305839234,-163.824937,0.0003242,2]
[312826851,1706305839243,-20418.2956376,0.00032877,2]
[312826852,1706305839252,-151.0,0.00032877,2]
[312826853,1706305839262,-352.7255,0.00032877,2]
[312826854,1706305839271,-352.7255,0.00032877,2]
[312826855,1706305839280,-151.0,0.00032877,2]
[312826856,1706305839290,-151.0,0.00032877,2]
[312826857,1706305839299,-151.0,0.00032877,2]
[312826858,1706305839308,-151.0,0.00032877,2]
[312826859,1706305839317,-303.11412,0.00032877,2]
[312826860,1706305839327,-303.11412,0.00032877,2]
[312826861,1706305839337,-1062.282448,0.00032877,2]
[312826862,1706305839346,-1062.282448,0.00032877,2]
[312826863,1706305839356,-699.111146,0.00032877,2]
[312826864,1706305839366,-699.111146,0.00032877,2]
[312826865,1706305839375,-151.0,0.00032877,2]
[312826866,1706305839384,-10000.0,0.00032877,2]
[312826867,1706305839393,-10000.0,0.00032877,2]
[312826868,1706305839402,-151.0,0.00032973,2]
[312826869,1706305839411,-352.7255,0.00032973,2]
[312826870,1706305839421,-352.7255,0.00032973,2]
[312826871,1706305839430,-151.0,0.00032973,2]
[312826872,1706305839440,-259.7,0.00032973,2]
[312826873,1706305839449,-151.0,0.00032973,2]
[312826874,1706305839458,-303.11412,0.00032973,2]
[312826875,1706305839468,-303.11412,0.00032973,2]
[312826876,1706305839477,-1062.282448,0.00032973,2]
[312826877,1706305839486,-1062.282448,0.00032973,2]
[312826878,1706305839496,-699.111146,0.00032973,2]
[312826879,1706305839506,-699.111146,0.00032973,2]
[312826880,1706305839516,-151.0,0.00032973,2]
[312826881,1706305839526,-10000.0,0.00032973,2]
[312826882,1706305839536,-10000.0,0.00032973,2]
[312826883,1706305839545,-163.824937,0.00033562,2]
[312826884,1706305839554,-50000.0,0.00033581,7]
[312826885,1706305839565,-151.0,0.00033581,2]
[312826886,1706305839575,-352.7255,0.00033581,2]
[312826887,1706305839585,-352.7255,0.00033581,2]
[312826888,1706305839594,-151.0,0.00033581,2]
[312826889,1706305839603,-174.720816,0.00033581,2]
[312826890,1706305839613,-303.11412,0.00033581,2]
[312826891,1706305839622,-303.11412,0.00033581,2]
[312826892,1706305839632,-1062.282448,0.00033581,2]
[312826893,1706305839642,-1062.282448,0.00033581,2]
[312826894,1706305839651,-699.111146,0.00033581,2]
[312826895,1706305839661,-699.111146,0.00033581,2]
[312826896,1706305839672,-151.0,0.00033581,2]
[312826897,1706305839681,-10000.0,0.00033581,2]
[312826898,1706305839690,-10000.0,0.00033581,2]
[312826899,1706305839700,-158.280104,0.0003379,2]
[312826900,1706305839709,-163.824937,0.00034703,2]
[312826901,1706305839719,-2084.95173309,0.00035,4]
[312826902,1706305839728,-155.02635448,0.00035,4]
[312826903,1706305839738,-576.0,0.000351,2]
[312826904,1706305839748,-200.0,0.00035281,15]
[312826905,1706305839757,-200.0,0.00035281,15]
[312826906,1706305839768,-213.0,0.00035281,15]
[312826907,1706305839778,-817.63023132,0.00035554,2]
[312826908,1706305839788,-400.53343037,0.00035554,2]